[Event "Late-Titled-Tuesday-Blitz-February-27-2024"]
[Site "Chess.com"]
[Date "2024.02.27"]
[Round "6"]
[White "giomar27"]
[Black "martinmena"]
[Result "1-0"]
[WhiteElo "2400"]
[BlackElo "2242"]
[TimeControl "180+1"]
[EndTime "15:06:17 PST"]
[Termination "giomar27 won on time"]

1. e4 {[%clk 0:02:51.4]} 1... c6 {[%clk 0:02:44.4]} 2. Nc3 {[%clk 0:02:46.7]}
2... d5 {[%clk 0:02:45.3]} 3. Nf3 {[%clk 0:02:46.6]} 3... Bg4 {[%clk 0:02:44.5]}
4. h3 {[%clk 0:02:46.3]} 4... Bxf3 {[%clk 0:02:43.8]} 5. Qxf3 {[%clk 0:02:47.2]}
5... e6 {[%clk 0:02:44.1]} 6. Be2 {[%clk 0:02:44.9]} 6... Nf6 {[%clk 0:02:39.8]}
7. O-O {[%clk 0:02:44.7]} 7... dxe4 {[%clk 0:02:36.5]} 8. Nxe4 {[%clk
0:02:44.3]} 8... Nxe4 {[%clk 0:02:37.4]} 9. Qxe4 {[%clk 0:02:45.2]} 9... Be7
{[%clk 0:02:36.9]} 10. d4 {[%clk 0:02:45.1]} 10... O-O {[%clk 0:02:35.1]} 11.
Bf4 {[%clk 0:02:42.4]} 11... Nd7 {[%clk 0:02:35.2]} 12. Rad1 {[%clk 0:02:40.7]}
12... Nf6 {[%clk 0:02:34.8]} 13. Qf3 {[%clk 0:02:40.9]} 13... Qd5 {[%clk
0:02:33.2]} 14. c4 {[%clk 0:02:40.6]} 14... Qxf3 {[%clk 0:02:32.1]} 15. Bxf3
{[%clk 0:02:41.5]} 15... Rfd8 {[%clk 0:02:31.8]} 16. Rfe1 {[%clk 0:02:41.2]}
16... Bb4 {[%clk 0:02:30.6]} 17. Re2 {[%clk 0:02:40]} 17... Rac8 {[%clk
0:02:25.3]} 18. a3 {[%clk 0:02:39.4]} 18... Ba5 {[%clk 0:02:22.6]} 19. b4 {[%clk
0:02:37.3]} 19... Bc7 {[%clk 0:02:21.9]} 20. Bg5 {[%clk 0:02:37.3]} 20... Rd7
{[%clk 0:02:19.3]} 21. Red2 {[%clk 0:02:34.4]} 21... Rcd8 {[%clk 0:02:16.3]} 22.
Kf1 {[%clk 0:02:34.7]} 22... h6 {[%clk 0:02:16.1]} 23. Bxf6 {[%clk 0:02:33.4]}
23... gxf6 {[%clk 0:02:16.3]} 24. Ke2 {[%clk 0:02:32.9]} 24... Bb6 {[%clk
0:02:11]} 25. c5 {[%clk 0:02:28.2]} 25... Bc7 {[%clk 0:02:10.8]} 26. b5 {[%clk
0:02:23.2]} 26... cxb5 {[%clk 0:01:57.1]} 27. Bxb7 {[%clk 0:02:21.9]} 27... Ba5
{[%clk 0:01:55.9]} 28. Bc6 {[%clk 0:02:21.4]} 28... Rc7 {[%clk 0:01:53]} 29.
Bxb5 {[%clk 0:02:21.3]} 29... Bxd2 {[%clk 0:01:52.9]} 30. Rxd2 {[%clk
0:02:22.2]} 30... e5 {[%clk 0:01:50.8]} 31. Ke3 {[%clk 0:02:17.5]} 31... Rd5
{[%clk 0:01:23.9]} 32. Bc4 {[%clk 0:01:50.5]} 32... exd4+ {[%clk 0:01:16.2]} 33.
Rxd4 {[%clk 0:01:47.1]} 33... Rdxc5 {[%clk 0:01:15.3]} 34. Kd3 {[%clk
0:01:43.9]} 34... Ra5 {[%clk 0:00:58.3]} 35. a4 {[%clk 0:01:37.7]} 35... Kf8
{[%clk 0:00:55]} 36. Bb5 {[%clk 0:01:23.3]} 36... a6 {[%clk 0:00:52.5]} 37. Rd8+
{[%clk 0:01:20.8]} 37... Kg7 {[%clk 0:00:48.4]} 38. Ra8 {[%clk 0:01:21.6]} 38...
Rxb5 {[%clk 0:00:22.8]} 39. axb5 {[%clk 0:01:20.2]} 39... axb5 {[%clk
0:00:23.5]} 40. Rb8 {[%clk 0:01:20.7]} 40... Rc5 {[%clk 0:00:23.5]} 41. Kd4
{[%clk 0:01:20.4]} 41... Rg5 {[%clk 0:00:20.4]} 42. g4 {[%clk 0:01:19.9]} 42...
f5 {[%clk 0:00:20.4]} 43. f4 {[%clk 0:01:20]} 43... Rg6 {[%clk 0:00:19.3]} 44.
gxf5 {[%clk 0:01:15.7]} 44... Rg3 {[%clk 0:00:18.8]} 45. Ke4 {[%clk 0:01:09.5]}
45... Rb3 {[%clk 0:00:17.7]} 46. Rb6 {[%clk 0:01:06.7]} 46... Rb4+ {[%clk
0:00:12.1]} 47. Ke5 {[%clk 0:01:06.7]} 47... f6+ {[%clk 0:00:10]} 48. Ke6 {[%clk
0:01:02.6]} 48... Re4+ {[%clk 0:00:09.3]} 49. Kd5 {[%clk 0:01:02]} 49... Rxf4
{[%clk 0:00:06.8]} 50. Rb7+ {[%clk 0:01:02.5]} 50... Kg8 {[%clk 0:00:04]} 51.
Ke6 {[%clk 0:01:03.4]} 51... b4 {[%clk 0:00:03.1]} 52. Kxf6 {[%clk 0:01:03.7]}
52... Rf3 {[%clk 0:00:02.4]} 53. h4 {[%clk 0:01:01.6]} 53... b3 {[%clk
0:00:02.2]} 54. Kg6 {[%clk 0:00:59.6]} 54... Rg3+ {[%clk 0:00:02.6]} 55. Kxh6
{[%clk 0:01:00]} 55... Kf8 {[%clk 0:00:02.9]} 56. h5 {[%clk 0:00:56]} 56... Kg8
{[%clk 0:00:02.8]} 57. f6 {[%clk 0:00:44.3]} 57... Kf8 {[%clk 0:00:02.8]} 58.
Rg7 {[%clk 0:00:39.7]} 1-0

[Event "Late-Titled-Tuesday-Blitz-February-27-2024"]
[Site "Chess.com"]
[Date "2024.02.27"]
[Round "6"]
[White "Alphafischer2019"]
[Black "mishanick"]
[Result "0-1"]
[WhiteElo "2704"]
[BlackElo "3057"]
[TimeControl "180+1"]
[EndTime "15:06:18 PST"]
[Termination "mishanick won by checkmate"]

1. Nf3 {[%clk 0:03:00.9]} 1... d5 {[%clk 0:02:53.7]} 2. g3 {[%clk 0:03:01.4]}
2... g6 {[%clk 0:02:51.9]} 3. Bg2 {[%clk 0:03:01.2]} 3... Bg7 {[%clk 0:02:52.6]}
4. d4 {[%clk 0:03:01.9]} 4... Nf6 {[%clk 0:02:52.5]} 5. O-O {[%clk 0:03:01.8]}
5... c6 {[%clk 0:02:53.2]} 6. c4 {[%clk 0:03:01.9]} 6... dxc4 {[%clk 0:02:54.1]}
7. Nbd2 {[%clk 0:02:53.1]} 7... b5 {[%clk 0:02:53.1]} 8. a4 {[%clk 0:02:50.3]}
8... Bb7 {[%clk 0:02:51.6]} 9. e4 {[%clk 0:02:40.9]} 9... O-O {[%clk 0:02:47.3]}
10. e5 {[%clk 0:02:39.7]} 10... Nd5 {[%clk 0:02:46.3]} 11. Ne4 {[%clk
0:02:38.9]} 11... Na6 {[%clk 0:02:39.8]} 12. h4 {[%clk 0:02:25.8]} 12... Ndb4
{[%clk 0:02:24.1]} 13. h5 {[%clk 0:02:21.5]} 13... Nd3 {[%clk 0:02:24.3]} 14. h6
{[%clk 0:02:20.8]} 14... Bh8 {[%clk 0:02:24.4]} 15. Bg5 {[%clk 0:02:10.4]} 15...
Nab4 {[%clk 0:02:23.6]} 16. Nd6 {[%clk 0:02:04.7]} 16... Ba6 {[%clk 0:02:20.3]}
17. Ne1 {[%clk 0:01:57.1]} 17... bxa4 {[%clk 0:01:00.1]} 18. Nxd3 {[%clk
0:01:39.1]} 18... Nxd3 {[%clk 0:00:59.5]} 19. Qxa4 {[%clk 0:01:39.2]} 19... Bb5
{[%clk 0:00:38.3]} 20. Nxb5 {[%clk 0:01:35.1]} 20... cxb5 {[%clk 0:00:39.2]} 21.
Qxb5 {[%clk 0:01:33.3]} 21... Rc8 {[%clk 0:00:37.8]} 22. Rxa7 {[%clk 0:01:29.6]}
22... Qxd4 {[%clk 0:00:38.1]} 23. Rxe7 {[%clk 0:01:23.4]} 23... Nxe5 {[%clk
0:00:35.6]} 24. Be3 {[%clk 0:01:09.2]} 24... Qd6 {[%clk 0:00:33.1]} 25. Rb7
{[%clk 0:01:02.4]} 25... Ng4 {[%clk 0:00:20.6]} 26. Bf4 {[%clk 0:00:56.9]} 26...
Be5 {[%clk 0:00:20.7]} 27. Bg5 {[%clk 0:00:47.4]} 27... Bxg3 {[%clk 0:00:09.6]}
28. fxg3 {[%clk 0:00:38.7]} 28... Rc5 {[%clk 0:00:04.7]} 29. Qd7 {[%clk
0:00:32.8]} 29... Qxd7 {[%clk 0:00:03.9]} 30. Rxd7 {[%clk 0:00:33.6]} 30... Rxg5
{[%clk 0:00:04.4]} 31. Rfxf7 {[%clk 0:00:34.2]} 31... Rxf7 {[%clk 0:00:03.5]}
32. Bd5 {[%clk 0:00:24.8]} 32... Rxd5 {[%clk 0:00:03.1]} 33. Rxd5 {[%clk
0:00:25.7]} 33... Nxh6 {[%clk 0:00:03.6]} 34. Rc5 {[%clk 0:00:26.6]} 34... Rb7
{[%clk 0:00:03.8]} 35. Rxc4 {[%clk 0:00:26.2]} 35... Rxb2 {[%clk 0:00:04.4]} 36.
Rc8+ {[%clk 0:00:27.1]} 36... Kg7 {[%clk 0:00:04.6]} 37. Rc7+ {[%clk 0:00:28]}
37... Nf7 {[%clk 0:00:05.2]} 38. g4 {[%clk 0:00:28]} 38... Rb6 {[%clk
0:00:05.7]} 39. Kg2 {[%clk 0:00:28.3]} 39... Rd6 {[%clk 0:00:06.4]} 40. Kg3
{[%clk 0:00:28.8]} 40... h6 {[%clk 0:00:07.1]} 41. g5 {[%clk 0:00:28.2]} 41...
hxg5 {[%clk 0:00:07.3]} 42. Kg4 {[%clk 0:00:29.1]} 42... Rf6 {[%clk 0:00:07.7]}
43. Kg3 {[%clk 0:00:29.9]} 43... Rf4 {[%clk 0:00:08]} 44. Rc5 {[%clk 0:00:28.5]}
44... Kh6 {[%clk 0:00:07.9]} 45. Rc6 {[%clk 0:00:28.1]} 45... Ne5 {[%clk
0:00:07.7]} 46. Rc8 {[%clk 0:00:28.3]} 46... Rf3+ {[%clk 0:00:07.2]} 47. Kg2
{[%clk 0:00:28.9]} 47... g4 {[%clk 0:00:07.9]} 48. Re8 {[%clk 0:00:29.2]} 48...
Rf5 {[%clk 0:00:08.8]} 49. Kg3 {[%clk 0:00:27.7]} 49... Kg5 {[%clk 0:00:09.3]}
50. Re7 {[%clk 0:00:28.1]} 50... Rf3+ {[%clk 0:00:08.5]} 51. Kg2 {[%clk
0:00:28.8]} 51... Nd3 {[%clk 0:00:09.3]} 52. Re4 {[%clk 0:00:25.2]} 52... Nf4+
{[%clk 0:00:09.4]} 53. Kh2 {[%clk 0:00:26.1]} 53... g3+ {[%clk 0:00:09.8]} 54.
Kg1 {[%clk 0:00:26.6]} 54... g2 {[%clk 0:00:09.9]} 55. Re5+ {[%clk 0:00:26.2]}
55... Kg4 {[%clk 0:00:09.8]} 56. Re1 {[%clk 0:00:25.7]} 56... Kg3 {[%clk
0:00:10]} 57. Re3 {[%clk 0:00:25.8]} 57... Nh3# {[%clk 0:00:10.9]} 0-1

[Event "Late-Titled-Tuesday-Blitz-February-27-2024"]
[Site "Chess.com"]
[Date "2024.02.27"]
[Round "6"]
[White "semchik73"]
[Black "ahkashefi2800"]
[Result "0-1"]
[WhiteElo "2441"]
[BlackElo "2632"]
[TimeControl "180+1"]
[EndTime "15:06:18 PST"]
[Termination "ahkashefi2800 won on time"]

1. Nf3 {[%clk 0:03:00.9]} 1... d5 {[%clk 0:02:59.6]} 2. c4 {[%clk 0:03:00.9]}
2... c6 {[%clk 0:03:00]} 3. e3 {[%clk 0:03:01.3]} 3... Nf6 {[%clk 0:03:00.2]} 4.
Nc3 {[%clk 0:03:01.7]} 4... Bg4 {[%clk 0:02:59.9]} 5. Qb3 {[%clk 0:03:01.4]}
5... Qb6 {[%clk 0:02:58.8]} 6. Ne5 {[%clk 0:03:01.6]} 6... Be6 {[%clk
0:02:58.3]} 7. cxd5 {[%clk 0:02:57.4]} 7... Nxd5 {[%clk 0:02:58.4]} 8. Bc4
{[%clk 0:02:54.4]} 8... Qxb3 {[%clk 0:02:55.5]} 9. Bxb3 {[%clk 0:02:50.1]} 9...
Nd7 {[%clk 0:02:53.6]} 10. Nxd7 {[%clk 0:02:40.6]} 10... Kxd7 {[%clk 0:02:53.5]}
11. Ne4 {[%clk 0:02:33.5]} 11... b6 {[%clk 0:02:49.3]} 12. Ng5 {[%clk
0:02:32.4]} 12... f5 {[%clk 0:02:23]} 13. Nxe6 {[%clk 0:02:07.2]} 13... Kxe6
{[%clk 0:02:23]} 14. d3 {[%clk 0:02:04.5]} 14... Kf6 {[%clk 0:02:22.8]} 15. e4
{[%clk 0:01:51.2]} 15... Nb4 {[%clk 0:02:15.3]} 16. Ke2 {[%clk 0:01:51.1]} 16...
e5 {[%clk 0:02:13.7]} 17. h4 {[%clk 0:01:45.4]} 17... g6 {[%clk 0:01:34.4]} 18.
Bg5+ {[%clk 0:01:34.2]} 18... Kg7 {[%clk 0:01:34.7]} 19. Rac1 {[%clk 0:01:16.2]}
19... c5 {[%clk 0:01:34]} 20. exf5 {[%clk 0:00:54.3]} 20... gxf5 {[%clk
0:01:33.6]} 21. Be6 {[%clk 0:00:53.3]} 21... Nc6 {[%clk 0:01:33.5]} 22. Be3
{[%clk 0:00:37.8]} 22... f4 {[%clk 0:01:30.8]} 23. Bd5 {[%clk 0:00:36.6]} 23...
Rc8 {[%clk 0:01:30.2]} 24. Bxc6 {[%clk 0:00:31.1]} 24... fxe3 {[%clk 0:01:19.4]}
25. Be4 {[%clk 0:00:28.9]} 25... exf2 {[%clk 0:01:19.1]} 26. Kxf2 {[%clk
0:00:29.3]} 26... Be7 {[%clk 0:01:14.9]} 27. Rh3 {[%clk 0:00:27.1]} 27... Rhf8+
{[%clk 0:01:14.2]} 28. Ke2 {[%clk 0:00:25.7]} 28... Rf4 {[%clk 0:01:12.1]} 29.
h5 {[%clk 0:00:22.1]} 29... Bg5 {[%clk 0:01:10.3]} 30. Rch1 {[%clk 0:00:19.1]}
30... h6 {[%clk 0:01:09.1]} 31. Rg3 {[%clk 0:00:19.3]} 31... Rd8 {[%clk
0:01:08]} 32. Rxg5+ {[%clk 0:00:17.9]} 32... hxg5 {[%clk 0:01:07.8]} 33. h6+
{[%clk 0:00:18.5]} 33... Kh8 {[%clk 0:01:08.1]} 34. Rh5 {[%clk 0:00:18.7]} 34...
Rd6 {[%clk 0:00:51.9]} 35. h7 {[%clk 0:00:16.9]} 35... g4 {[%clk 0:00:35.9]} 36.
Rxe5 {[%clk 0:00:13.9]} 36... Rd8 {[%clk 0:00:33.8]} 37. Rg5 {[%clk 0:00:10.7]}
37... Rdf8 {[%clk 0:00:28.3]} 38. g3 {[%clk 0:00:08.8]} 38... Rf2+ {[%clk
0:00:28.1]} 39. Ke3 {[%clk 0:00:09.4]} 39... Rxb2 {[%clk 0:00:25.1]} 40. Rxg4
{[%clk 0:00:09.8]} 40... Rxa2 {[%clk 0:00:20.6]} 41. Rh4 {[%clk 0:00:05.7]}
41... Rff2 {[%clk 0:00:16.8]} 42. Bf3 {[%clk 0:00:04.7]} 42... Rh2 {[%clk
0:00:16.5]} 43. Rxh2 {[%clk 0:00:01.3]} 43... Rxh2 {[%clk 0:00:16.5]} 44. Be4
{[%clk 0:00:02.2]} 44... Rxh7 {[%clk 0:00:14.8]} 45. Bxh7 {[%clk 0:00:01.4]}
45... Kxh7 {[%clk 0:00:15.1]} 0-1

[Event "Late-Titled-Tuesday-Blitz-February-27-2024"]
[Site "Chess.com"]
[Date "2024.02.27"]
[Round "6"]
[White "delqate"]
[Black "ATM622"]
[Result "0-1"]
[WhiteElo "2407"]
[BlackElo "2528"]
[TimeControl "180+1"]
[EndTime "15:06:21 PST"]
[Termination "ATM622 won on time"]

1. e4 {[%clk 0:03:00.9]} 1... c6 {[%clk 0:02:59.6]} 2. d4 {[%clk 0:02:58.2]}
2... d5 {[%clk 0:03:00.5]} 3. exd5 {[%clk 0:02:58.3]} 3... cxd5 {[%clk
0:03:01.4]} 4. c4 {[%clk 0:02:58.7]} 4... Nf6 {[%clk 0:03:01.1]} 5. Nc3 {[%clk
0:02:59.6]} 5... Nc6 {[%clk 0:03:01.2]} 6. Bg5 {[%clk 0:02:59.7]} 6... Be6
{[%clk 0:02:59.5]} 7. a3 {[%clk 0:02:59.8]} 7... h6 {[%clk 0:02:50.3]} 8. Bxf6
{[%clk 0:02:54.6]} 8... exf6 {[%clk 0:02:51.2]} 9. c5 {[%clk 0:02:43.2]} 9...
Be7 {[%clk 0:02:40.6]} 10. Bb5 {[%clk 0:02:42.9]} 10... O-O {[%clk 0:02:38.8]}
11. Nge2 {[%clk 0:02:43.1]} 11... Qc7 {[%clk 0:02:21.8]} 12. O-O {[%clk
0:02:41.1]} 12... Na5 {[%clk 0:02:14.1]} 13. b4 {[%clk 0:02:31]} 13... Nc6
{[%clk 0:02:12.9]} 14. Qd2 {[%clk 0:02:22.4]} 14... Rad8 {[%clk 0:01:51.7]} 15.
h3 {[%clk 0:02:19.1]} 15... f5 {[%clk 0:01:50.2]} 16. Rad1 {[%clk 0:02:10.2]}
16... Bg5 {[%clk 0:01:47.4]} 17. Qc2 {[%clk 0:01:53.8]} 17... Bf6 {[%clk
0:01:42.3]} 18. Rfe1 {[%clk 0:01:44.6]} 18... Rfe8 {[%clk 0:01:32.8]} 19. Ba4
{[%clk 0:01:41.6]} 19... a6 {[%clk 0:01:27]} 20. Bb3 {[%clk 0:01:40.6]} 20... f4
{[%clk 0:01:16]} 21. Qd3 {[%clk 0:01:28]} 21... Ne7 {[%clk 0:01:02.7]} 22. Qf3
{[%clk 0:01:22.2]} 22... g5 {[%clk 0:01:01.9]} 23. Nc1 {[%clk 0:01:18]} 23...
Nf5 {[%clk 0:00:57.4]} 24. Nxd5 {[%clk 0:00:49]} 24... Bxd5 {[%clk 0:00:56.8]}
25. Rxe8+ {[%clk 0:00:49.1]} 25... Rxe8 {[%clk 0:00:56.4]} 26. Qxd5 {[%clk
0:00:49.1]} 26... Nxd4 {[%clk 0:00:50.8]} 27. Bc4 {[%clk 0:00:44.2]} 27... Rd8
{[%clk 0:00:37.9]} 28. Qe4 {[%clk 0:00:42.3]} 28... Kg7 {[%clk 0:00:37.7]} 29.
Bd3 {[%clk 0:00:34.8]} 29... Rh8 {[%clk 0:00:36.4]} 30. Ne2 {[%clk 0:00:31.6]}
30... Ne6 {[%clk 0:00:33.3]} 31. Bc4 {[%clk 0:00:27.6]} 31... Re8 {[%clk
0:00:31.2]} 32. Rd6 {[%clk 0:00:17.3]} 32... Qe7 {[%clk 0:00:16.8]} 33. Qd5
{[%clk 0:00:15.3]} 33... Nc7 {[%clk 0:00:13.5]} 34. Qf5 {[%clk 0:00:10.2]} 34...
Qe5 {[%clk 0:00:09]} 35. Qd7 {[%clk 0:00:07]} 35... Qe7 {[%clk 0:00:07.2]} 36.
Qf5 {[%clk 0:00:05.2]} 36... Qe5 {[%clk 0:00:05.5]} 37. Qd7 {[%clk 0:00:05.4]}
37... Re7 {[%clk 0:00:06]} 38. Qc8 {[%clk 0:00:05.7]} 38... Ne8 {[%clk
0:00:05.3]} 39. Rd8 {[%clk 0:00:04.4]} 39... Qa1+ {[%clk 0:00:04.6]} 40. Kh2
{[%clk 0:00:04.2]} 40... Qe5 {[%clk 0:00:05.3]} 41. Kg1 {[%clk 0:00:04]} 41...
h5 {[%clk 0:00:05.5]} 42. Rd6 {[%clk 0:00:02.8]} 42... Qa1+ {[%clk 0:00:04.9]}
43. Kh2 {[%clk 0:00:02.4]} 43... Qe5 {[%clk 0:00:05.8]} 44. c6 {[%clk
0:00:02.4]} 44... f3+ {[%clk 0:00:05.8]} 45. Ng3 {[%clk 0:00:01.4]} 45... Nxd6
{[%clk 0:00:06.2]} 0-1

[Event "Late-Titled-Tuesday-Blitz-February-27-2024"]
[Site "Chess.com"]
[Date "2024.02.27"]
[Round "6"]
[White "gxbg2000"]
[Black "IngOscarArdila"]
[Result "0-1"]
[WhiteElo "1938"]
[BlackElo "2289"]
[TimeControl "180+1"]
[EndTime "15:06:21 PST"]
[Termination "IngOscarArdila won by resignation"]

1. e4 {[%clk 0:03:00.9]} 1... e5 {[%clk 0:02:56.7]} 2. Nf3 {[%clk 0:03:00.1]}
2... Nf6 {[%clk 0:02:57.1]} 3. Nc3 {[%clk 0:02:57.8]} 3... Nc6 {[%clk
0:02:56.9]} 4. Bc4 {[%clk 0:02:56.8]} 4... Bb4 {[%clk 0:02:56.3]} 5. d3 {[%clk
0:02:56.8]} 5... d6 {[%clk 0:02:56.5]} 6. h3 {[%clk 0:02:56.9]} 6... O-O {[%clk
0:02:56.6]} 7. O-O {[%clk 0:02:56.7]} 7... Qe7 {[%clk 0:02:56.9]} 8. a3 {[%clk
0:02:54.4]} 8... Bxc3 {[%clk 0:02:57]} 9. bxc3 {[%clk 0:02:55.3]} 9... Nd8
{[%clk 0:02:57.2]} 10. Rb1 {[%clk 0:02:53.7]} 10... b6 {[%clk 0:02:56.5]} 11.
Bg5 {[%clk 0:02:52.5]} 11... Ne6 {[%clk 0:02:55.9]} 12. Bh4 {[%clk 0:02:51.1]}
12... Rd8 {[%clk 0:02:55.2]} 13. Qc1 {[%clk 0:02:47.4]} 13... Nf4 {[%clk
0:02:54.8]} 14. Re1 {[%clk 0:02:33.3]} 14... h6 {[%clk 0:02:54.8]} 15. Bg3
{[%clk 0:02:31.8]} 15... g5 {[%clk 0:02:54.5]} 16. Nh2 {[%clk 0:02:28]} 16...
N6h5 {[%clk 0:02:53.7]} 17. Qd1 {[%clk 0:02:22.9]} 17... Kg7 {[%clk 0:02:49.2]}
18. Bd5 {[%clk 0:02:11.1]} 18... Rb8 {[%clk 0:02:48.2]} 19. a4 {[%clk
0:02:08.1]} 19... a5 {[%clk 0:02:48]} 20. Re3 {[%clk 0:01:52.7]} 20... Bd7
{[%clk 0:02:44.6]} 21. Bb3 {[%clk 0:01:51.7]} 21... Rf8 {[%clk 0:02:41.6]} 22.
Ng4 {[%clk 0:01:46.8]} 22... Rbd8 {[%clk 0:02:26.9]} 23. d4 {[%clk 0:01:45.4]}
23... Bc8 {[%clk 0:02:24]} 24. d5 {[%clk 0:01:43.5]} 24... Bd7 {[%clk
0:02:22.9]} 25. c4 {[%clk 0:01:34.8]} 25... f5 {[%clk 0:02:20.6]} 26. exf5
{[%clk 0:01:34.2]} 26... Bxf5 {[%clk 0:02:21.5]} 27. c3 {[%clk 0:01:17.2]} 27...
Bxb1 {[%clk 0:02:20.4]} 28. Qxb1 {[%clk 0:01:17]} 28... Qf7 {[%clk 0:02:10.2]}
29. Rf3 {[%clk 0:01:11.8]} 29... Qe7 {[%clk 0:01:53.6]} 30. Re3 {[%clk 0:01:09]}
30... Qe8 {[%clk 0:01:49.9]} 31. Bd1 {[%clk 0:01:07.3]} 31... Qg6 {[%clk
0:01:48.3]} 32. Bc2 {[%clk 0:01:01.7]} 32... Qf7 {[%clk 0:01:42.7]} 33. Bd1
{[%clk 0:00:53.4]} 33... Rb8 {[%clk 0:01:38.3]} 34. Qb5 {[%clk 0:00:49.1]} 34...
Qe8 {[%clk 0:01:36.1]} 35. Bf3 {[%clk 0:00:45.4]} 35... Qxb5 {[%clk 0:01:34.9]}
36. cxb5 {[%clk 0:00:45.4]} 36... Nxg3 {[%clk 0:01:34.8]} 37. fxg3 {[%clk
0:00:44.4]} 37... Ng6 {[%clk 0:01:34.9]} 38. c4 {[%clk 0:00:43.7]} 38... h5
{[%clk 0:01:33.8]} 39. Nf2 {[%clk 0:00:42.7]} 39... h4 {[%clk 0:01:26.2]} 40.
gxh4 {[%clk 0:00:42.2]} 40... Nxh4 {[%clk 0:01:25.7]} 41. Bg4 {[%clk 0:00:41.2]}
41... Ng6 {[%clk 0:01:23.1]} 42. Ne4 {[%clk 0:00:41]} 42... Kh6 {[%clk
0:01:20.3]} 43. Ng3 {[%clk 0:00:39]} 43... Rf4 {[%clk 0:01:17.6]} 44. Nf5+
{[%clk 0:00:35.8]} 44... Kh7 {[%clk 0:01:17.6]} 45. Ng3 {[%clk 0:00:30]} 45...
Rxc4 {[%clk 0:01:15.8]} 46. Bf5 {[%clk 0:00:30.5]} 46... Kg7 {[%clk 0:01:11.8]}
47. Ne4 {[%clk 0:00:29.5]} 47... Rf8 {[%clk 0:01:04.8]} 48. g4 {[%clk
0:00:26.7]} 48... Kh6 {[%clk 0:00:57.4]} 49. Kh2 {[%clk 0:00:20.3]} 49... Nh4
{[%clk 0:00:56.9]} 50. Ng3 {[%clk 0:00:14.2]} 50... Rxa4 {[%clk 0:00:43]} 51.
Rc3 {[%clk 0:00:13.3]} 51... Ra2+ {[%clk 0:00:42.6]} 52. Kg1 {[%clk 0:00:12.1]}
52... Rf7 {[%clk 0:00:42.4]} 53. Kf1 {[%clk 0:00:10.6]} 53... Nxf5 {[%clk
0:00:38.4]} 54. Nxf5+ {[%clk 0:00:09.7]} 54... Kg6 {[%clk 0:00:38.1]} 55. h4
{[%clk 0:00:06.1]} 55... gxh4 {[%clk 0:00:37.5]} 56. Ke1 {[%clk 0:00:06.5]}
56... Kg5 {[%clk 0:00:37.4]} 57. Rh3 {[%clk 0:00:03]} 57... Kxg4 {[%clk
0:00:34.7]} 0-1

[Event "Late-Titled-Tuesday-Blitz-February-27-2024"]
[Site "Chess.com"]
[Date "2024.02.27"]
[Round "6"]
[White "Abund"]
[Black "maximnovik"]
[Result "0-1"]
[WhiteElo "2740"]
[BlackElo "2610"]
[TimeControl "180+1"]
[EndTime "15:06:24 PST"]
[Termination "maximnovik won by resignation"]

1. e4 {[%clk 0:03:00.9]} 1... c6 {[%clk 0:02:59.6]} 2. d4 {[%clk 0:03:00.6]}
2... d5 {[%clk 0:03:00.2]} 3. exd5 {[%clk 0:03:01.5]} 3... cxd5 {[%clk
0:03:00.1]} 4. Bd3 {[%clk 0:03:02.2]} 4... Nf6 {[%clk 0:03:00]} 5. h3 {[%clk
0:03:02.9]} 5... Nc6 {[%clk 0:02:59.9]} 6. c3 {[%clk 0:03:03.6]} 6... e5 {[%clk
0:02:59.6]} 7. dxe5 {[%clk 0:03:04.5]} 7... Nxe5 {[%clk 0:02:59.7]} 8. Nf3
{[%clk 0:03:05.3]} 8... Nxd3+ {[%clk 0:02:59.5]} 9. Qxd3 {[%clk 0:03:06.2]} 9...
Bc5 {[%clk 0:02:59.3]} 10. O-O {[%clk 0:03:02.9]} 10... O-O {[%clk 0:02:59.2]}
11. Be3 {[%clk 0:02:55.7]} 11... Bxe3 {[%clk 0:02:46.2]} 12. Qxe3 {[%clk
0:02:55.8]} 12... Re8 {[%clk 0:02:46.7]} 13. Qd3 {[%clk 0:02:50.7]} 13... Qb6
{[%clk 0:02:43.4]} 14. b3 {[%clk 0:02:37.7]} 14... Bd7 {[%clk 0:02:36.8]} 15.
Nd4 {[%clk 0:02:33.2]} 15... Ne4 {[%clk 0:02:24.1]} 16. Nd2 {[%clk 0:02:19]}
16... Qg6 {[%clk 0:02:12.1]} 17. Nxe4 {[%clk 0:01:54.1]} 17... dxe4 {[%clk
0:02:10.3]} 18. Qe3 {[%clk 0:01:53.3]} 18... f5 {[%clk 0:01:57.3]} 19. Qf4
{[%clk 0:01:44]} 19... Rac8 {[%clk 0:01:48.5]} 20. c4 {[%clk 0:01:39.5]} 20...
Qf6 {[%clk 0:01:47.8]} 21. h4 {[%clk 0:01:27.8]} 21... h6 {[%clk 0:01:31]} 22.
Rad1 {[%clk 0:01:11]} 22... g5 {[%clk 0:01:27.8]} 23. Qd2 {[%clk 0:00:56.8]}
23... f4 {[%clk 0:01:13]} 24. Ne2 {[%clk 0:00:44.4]} 24... Bg4 {[%clk
0:01:06.3]} 25. hxg5 {[%clk 0:00:29.5]} 25... hxg5 {[%clk 0:01:05.3]} 26. f3
{[%clk 0:00:21.8]} 26... Rcd8 {[%clk 0:00:47.7]} 27. Qc3 {[%clk 0:00:14.2]}
27... Qxc3 {[%clk 0:00:41.3]} 28. Nxc3 {[%clk 0:00:14.6]} 28... Rxd1 {[%clk
0:00:41.3]} 29. Nxd1 {[%clk 0:00:11.6]} 29... exf3 {[%clk 0:00:37]} 30. gxf3
{[%clk 0:00:11.8]} 30... Bh3 {[%clk 0:00:37.5]} 31. Nf2 {[%clk 0:00:07]} 31...
Bxf1 {[%clk 0:00:36.9]} 32. Kxf1 {[%clk 0:00:07.9]} 32... Re3 {[%clk 0:00:36.7]}
33. Kg2 {[%clk 0:00:05.4]} 33... Kg7 {[%clk 0:00:35.6]} 34. Ng4 {[%clk
0:00:01.4]} 34... Re2+ {[%clk 0:00:34.7]} 35. Kh3 {[%clk 0:00:01.9]} 35... Rxa2
{[%clk 0:00:35.2]} 36. Ne5 {[%clk 0:00:02.4]} 36... Rb2 {[%clk 0:00:34]} 37. Kg4
{[%clk 0:00:01.5]} 37... Kf6 {[%clk 0:00:32.8]} 38. Nd7+ {[%clk 0:00:01.5]}
38... Ke7 {[%clk 0:00:31.5]} 39. Nc5 {[%clk 0:00:01.4]} 39... b6 {[%clk
0:00:31.3]} 40. Ne4 {[%clk 0:00:01.5]} 40... Rxb3 {[%clk 0:00:29.9]} 41. Nxg5
{[%clk 0:00:01.9]} 41... a5 {[%clk 0:00:29.6]} 42. Kxf4 {[%clk 0:00:01.3]} 42...
a4 {[%clk 0:00:29.3]} 43. Ne4 {[%clk 0:00:02]} 43... a3 {[%clk 0:00:29]} 44. Nd2
{[%clk 0:00:02.8]} 44... Rb2 {[%clk 0:00:27.8]} 45. Ne4 {[%clk 0:00:02.8]} 45...
a2 {[%clk 0:00:27]} 46. Nc3 {[%clk 0:00:03.7]} 46... a1=Q {[%clk 0:00:26.6]} 47.
Nd5+ {[%clk 0:00:04.5]} 47... Kd6 {[%clk 0:00:25.9]} 48. Nf6 {[%clk 0:00:04]}
48... Qc1+ {[%clk 0:00:25.9]} 49. Kf5 {[%clk 0:00:03.8]} 49... Qxc4 {[%clk
0:00:26.4]} 50. f4 {[%clk 0:00:04.1]} 50... Rf2 {[%clk 0:00:25.4]} 51. Ne4+
{[%clk 0:00:04]} 51... Qxe4+ {[%clk 0:00:25.2]} 52. Kxe4 {[%clk 0:00:04.9]}
52... b5 {[%clk 0:00:25.6]} 53. Ke3 {[%clk 0:00:04.6]} 53... Rf1 {[%clk
0:00:24.7]} 54. Ke2 {[%clk 0:00:04.6]} 54... Rxf4 {[%clk 0:00:24.5]} 55. Ke3
{[%clk 0:00:05.4]} 55... Ke5 {[%clk 0:00:25]} 56. Kd3 {[%clk 0:00:05.9]} 56...
Rc4 {[%clk 0:00:25.2]} 0-1